[Event "POL-chT 1 Liga 2019"]
[Site "Dzwirzyno"]
[Date "2019.09.11"]
[Round "5.11"]
[White "Renkowski, Piotr"]
[Black "Sliwerski, Radoslaw"]
[Result "1-0"]
[ECO "B23"]
[WhiteElo "2179"]
[BlackElo "2078"]
[Annotator "NA"]
[PlyCount "43"]
[EventDate "2019.09.07"]
[EventType "team-tourn"]
[EventCountry "POL"]
[SourceTitle "playchess.com"]
[Source "ChessBase"]
[SourceQuality "1"]
[TimeControl "40/5400+30:1800+30"]

1. e4 {[%emt 0:00:00]} c5 {[%emt 0:00:00]} 2. Nc3 {[%emt 0:00:00]} d6 {[%emt 0:00:00]} 3. f4 {[%emt 0:00:11]} Nc6 {[%emt 0:00:13]} 4. Nf3 {[%emt 0:00:11]} g6 {[%emt 0:00:06]} 5. d4 {[%emt 0:00:08]} Bg7 {[%emt 0:02:29]} 6. Be3 {[%emt 0:00:43]} Bg4 {[%emt 0:02:33]} 7. dxc5 {[%emt 0:14:01]} Qa5 {[%emt 0:08:13]} 8. cxd6 {[%emt 0:14:45]} Bxc3+ {[%emt 0:00:53]} 9. bxc3 {[%emt 0:00:38]} Rd8 {[%emt 0:05:48]} 10. Bd3 {[%emt 0:09:04]} Qxc3+ {[%emt 0:04:09]} 11. Kf2 {[%emt 0:15:09]} Rxd6 {[%emt 0:02:33]} 12. Rb1 {[%emt 0:02:36]} Nf6 {[%emt 0:03:14]} 13. Qe1 {[%emt 0:02:43]} Qxe1+ {[%emt 0:01:31]} 14. Rhxe1 {[%emt 0:00:03]} Rd7 {[%emt 0:00:14]} 15. Ne5 {[%emt 0:00:13]} Rc7 {[%emt 0:02:26]} 16. Nxc6 {[%emt 0:00:16]} bxc6 {[%emt 0:00:02]} 17. f5 {[%emt 0:00:47]} O-O {[%emt 0:01:14]} 18. h3 {[%emt 0:00:09]} gxf5 {[%emt 0:04:36]} 19. exf5 {[%emt 0:00:49]} Bh5 {[%emt 0:00:44]} 20. g4 {[%emt 0:00:11]} Bxg4 {[%emt 0:00:22]} 21. Rg1 {[%emt 0:05:12]} h5 {[%emt 0:00:22]} 22. Bd4 {[%emt 0:01:47]} 1-0

[Event "POL-chT 1 Liga 2019"]
[Site "Dzwirzyno"]
[Date "2019.09.11"]
[Round "5.15"]
[White "Nowak, Lukasz"]
[Black "Rawicz, Karol"]
[Result "1/2-1/2"]
[ECO "D44"]
[WhiteElo "2270"]
[BlackElo "2200"]
[Annotator "NA"]
[PlyCount "70"]
[EventDate "2019.09.07"]
[EventType "team-tourn"]
[EventCountry "POL"]
[SourceTitle "playchess.com"]
[Source "ChessBase"]
[SourceQuality "1"]
[TimeControl "40/5400+30:1800+30"]

1. d4 {[%emt 0:00:00]} d5 {[%emt 0:00:22]} 2. c4 {[%emt 0:00:00]} c6 {[%emt 0:00:10]} 3. Nf3 {[%emt 0:00:00]} Nf6 {[%emt 0:00:27]} 4. Nc3 {[%emt 0:00:09]} e6 {[%emt 0:00:24]} 5. Bg5 {[%emt 0:00:29]} dxc4 {[%emt 0:06:05]} 6. e4 {[%emt 0:00:34]} b5 {[%emt 0:00:28]} 7. e5 {[%emt 0:00:35]} h6 {[%emt 0:00:07]} 8. Bh4 {[%emt 0:00:12]} g5 {[%emt 0:00:10]} 9. Nxg5 {[%emt 0:00:09]} hxg5 {[%emt 0:00:04]} 10. Bxg5 {[%emt 0:00:07]} Nbd7 {[%emt 0:00:14]} 11. g3 {[%emt 0:00:15]} Qb6 {[%emt 0:08:28]} 12. exf6 {[%emt 0:00:19]} Bb7 {[%emt 0:00:26]} 13. Bg2 {[%emt 0:00:13]} O-O-O {[%emt 0:00:23]} 14. O-O {[%emt 0:00:13]} c5 {[%emt 0:09:19]} 15. d5 {[%emt 0:00:51]} b4 {[%emt 0:04:13]} 16. Rb1 {[%emt 0:01:36]} Qa6 {[%emt 0:09:29]} 17. dxe6 {[%emt 0:03:33]} Bxg2 {[%emt 0:07:55]} 18. e7 {[%emt 0:00:41]} Bxe7 {[%emt 0:45:31]} 19. fxe7 {[%emt 0:00:24]} Rdg8 {[%emt 0:00:01]} 20. Kxg2 {[%emt 0:04:45]} Rxg5 {[%emt 0:00:44]} 21. Ne4 {[%emt 0:22:17]} Qc6 {[%emt 0:00:02]} 22. f3 {[%emt 0:00:45]} Rd5 {[%emt 0:00:14]} 23. Qe2 {[%emt 0:01:55]} Ne5 {[%emt 0:04:07]} 24. Rbd1 {[%emt 0:21:58]} Rd4 {[%emt 0:00:19]} 25. Rfe1 {[%emt 0:07:37]} Nd3 {[%emt 0:02:09]} 26. Rh1 {[%emt 0:17:34]} Re8 {[%emt 0:00:06]} 27. b3 {[%emt 0:02:57]} Rxe7 {[%emt 0:00:16]} 28. bxc4 {[%emt 0:05:29]} Rexe4 {[%emt 0:00:02]} 29. fxe4 {[%emt 0:00:15]} Rxe4 {[%emt 0:00:02]} 30. Qxd3 {[%emt 0:00:33]} Re2+ {[%emt 0:00:04]} 31. Kh3 {[%emt 0:00:24]} Qe6+ {[%emt 0:00:09]} 32. g4 {[%emt 0:02:22]} Re3+ {[%emt 0:00:17]} 33. Qxe3 {[%emt 0:00:18]} Qxe3+ {[%emt 0:00:03]} 34. Kh4 {[%emt 0:00:09]} Qh6+ {[%emt 0:00:52]} 35. Kg3 {[%emt 0:00:14]} Qe3+ {[%emt 0:01:21]} 1/2-1/2

[Event "POL-chT 1 Liga 2019"]
[Site "Dzwirzyno"]
[Date "2019.09.11"]
[Round "5.16"]
[White "Jaroch, Karol"]
[Black "Kokoszczynski, Jan"]
[Result "1-0"]
[ECO "E12"]
[WhiteElo "2236"]
[BlackElo "2289"]
[Annotator "RC"]
[PlyCount "221"]
[EventDate "2019.09.07"]
[EventType "team-tourn"]
[EventCountry "POL"]
[SourceTitle "playchess.com"]
[Source "ChessBase"]
[SourceQuality "1"]
[TimeControl "40/5400+30:1800+30"]

1. d4 {[%emt 0:00:00]} Nf6 {[%emt 0:00:14]} 2. c4 {[%emt 0:00:00]} e6 {[%emt 0:00:19]} 3. Nf3 {[%emt 0:00:00]} b6 {[%emt 0:01:00]} 4. Bg5 {[%emt 0:00:00]} h6 {[%emt 0:07:12]} 5. Bxf6 {[%emt 0:05:27]} Qxf6 {[%emt 0:00:30]} 6. g3 {[%emt 0:02:21]} Bb7 {[%emt 0:02:36]} 7. Bg2 {[%emt 0:00:07]} Bb4+ {[%emt 0:02:00]} 8. Nbd2 {[%emt 0:00:26]} c5 {[%emt 0:00:55]} 9. dxc5 {[%emt 0:13:05]} bxc5 {[%emt 0:09:57]} 10. O-O {[%emt 0:03:57]} O-O {[%emt 0:13:35]} 11. Nb3 {[%emt 0:10:04]} d5 {[%emt 0:09:57]} 12. Qc2 {[%emt 0:19:09]} dxc4 {[%emt 0:09:07]} 13. Ng5 {[%emt 0:04:35]} hxg5 {[%emt 0:00:24]} 14. Bxb7 {[%emt 0:00:06]} cxb3 {[%emt 0:01:13]} 15. Qe4 {[%emt 0:03:25]} Nd7 {[%emt 0:10:10]} 16. Bxa8 {[%emt 0:00:13]} Nb6 {[%emt 0:00:18]} 17. Bc6 {[%emt 0:00:49]} Qxb2 {[%emt 0:01:31]} 18. axb3 {[%emt 0:01:16]} a5 {[%emt 0:00:50]} 19. Rab1 {[%emt 0:00:14]} Qf6 {[%emt 0:04:21]} 20. Rfd1 {[%emt 0:00:38]} Rd8 {[%emt 0:03:14]} 21. Kg2 {[%emt 0:07:50]} g6 {[%emt 0:00:46]} 22. Rd3 {[%emt 0:01:34]} Rd4 {[%emt 0:00:24]} 23. Rxd4 {[%emt 0:01:34]} cxd4 {[%emt 0:00:45]} 24. Qd3 {[%emt 0:00:54]} Nc8 {[%emt 0:01:09]} 25. Rh1 {[%emt 0:07:08]} Ne7 {[%emt 0:03:22]} 26. Be4 {[%emt 0:01:46]} Kg7 {[%emt 0:00:25]} 27. h4 {[%emt 0:00:08]} gxh4 {[%emt 0:00:38]} 28. Rxh4 {[%emt 0:00:07]} Qe5 {[%emt 0:01:21]} 29. Qa6 {[%emt 0:02:02]} Ng8 {[%emt 0:01:24]} 30. Qa8 {[%emt 0:03:20]} Be7 {[%emt 0:03:08]} 31. Rh1 {[%emt 0:00:11]} Bb4 {[%emt 0:00:11]} 32. Bd3 {[%emt 0:00:10]} Qd6 {[%emt 0:04:53]} 33. Rh4 {[%emt 0:02:05]} Bc3 {[%emt 0:00:32]} 34. Qc8 {[%emt 0:05:42]} Qd5+ {[%emt 0:02:53]} 35. Be4 {[%emt 0:00:17]} Qd6 {[%emt 0:01:23]} 36. Bf3 {[%emt 0:00:11]} Qe5 {[%emt 0:02:34]} 37. Qc6 {[%emt 0:04:05]} Ne7 {[%emt 0:01:26]} 38. Qd7 {[%emt 0:01:04]} Ng8 {[%emt 0:00:47]} 39. Re4 {[%emt 0:00:34]} Qf6 {[%emt 0:01:33]} 40. Bg4 {[%emt 0:00:00]} Qe7 {[%emt 0:00:00]} 41. Qxe7 {[%emt 0:10:00]} Nxe7 {[%emt 0:00:23]} 42. Bf3 {[%emt 0:00:51]} Nf5 {[%emt 0:05:52]} 43. Kf1 {[%emt 0:01:09]} Kf6 {[%emt 0:09:34]} 44. e3 {[%emt 0:08:35]} dxe3 {[%emt 0:16:10]} 45. g4 {[%emt 0:00:06]} Nd4 {[%emt 0:00:06]} 46. Rxe3 {[%emt 0:00:10]} Bb4 {[%emt 0:00:04]} 47. Be2 {[%emt 0:02:00]} g5 {[%emt 0:01:21]} 48. Bc4 {[%emt 0:00:31]} Ke7 {[%emt 0:00:52]} 49. Re4 {[%emt 0:00:26]} Bc3 {[%emt 0:00:27]} 50. Re3 {[%emt 0:00:57]} Bb4 {[%emt 0:00:07]} 51. Rd3 {[%emt 0:00:41]} Bc5 {[%emt 0:00:15]} 52. Rh3 {[%emt 0:00:52]} f5 {[%emt 0:01:20]} 53. gxf5 {[%emt 0:01:09]} exf5 {[%emt 0:00:05]} 54. Rh6 {[%emt 0:00:05]} g4 {[%emt 0:00:37]} 55. Kg2 {[%emt 0:00:42]} Bd6 {[%emt 0:00:23]} 56. Bd5 {[%emt 0:00:32]} Bf4 {[%emt 0:00:51]} 57. Rb6 {[%emt 0:00:24]} Bd2 {[%emt 0:00:15]} 58. f3 {[%emt 0:00:28]} gxf3+ {[%emt 0:00:31]} 59. Bxf3 {[%emt 0:00:02]} f4 {[%emt 0:00:46]} 60. Bd5 {[%emt 0:00:18]} Kd7 {[%emt 0:00:10]} 61. Kh3 {[%emt 0:00:29]} f3 {[%emt 0:00:46]} 62. Rf6 {[%emt 0:00:29]} Be1 {[%emt 0:00:31]} 63. Rf4 {[%emt 0:00:35]} Bc3 {[%emt 0:00:32]} 64. Bxf3 {[%emt 0:00:21]} Kd6 {[%emt 0:00:31]} 65. Bd1 {[%emt 0:00:25]} Ke5 {[%emt 0:00:29]} 66. Kg4 {[%emt 0:00:16]} Bd2 {[%emt 0:00:15]} 67. Rf8 {[%emt 0:00:11]} Ke4 {[%emt 0:00:18]} 68. Rc8 {[%emt 0:01:11]} Kd3 {[%emt 0:00:38]} 69. Rc4 {[%emt 0:01:13]} Be3 {[%emt 0:00:10]} 70. Ra4 {[%emt 0:03:46]} Kd2 {[%emt 0:00:46]} 71. Bf3 {[%emt 0:00:58]} Nxb3 {[%emt 0:00:39]} 72. Bd5 {[%emt 0:00:10]} Nd4 {[%emt 0:00:43]} 73. Rxa5 {[%emt 0:00:06]} Kc3 {[%emt 0:00:31]} 74. Ra3+ {[%emt 0:00:10]} Kd2 {[%emt 0:00:02]} 75. Bc4 {[%emt 0:00:16]} Nc2 {[%emt 0:00:12]} 76. Rd3+ {[%emt 0:00:15]} Kc1 {[%emt 0:01:09]} 77. Bb3 {[%emt 0:00:14]} Bd2 {[%emt 0:00:05]} 78. Rd8 {[%emt 0:00:19]} Bc3 {[%emt 0:00:20]} 79. Kf4 {[%emt 0:00:24]} Kb2 {[%emt 0:00:13]} 80. Bc4 {[%emt 0:00:17]} Bf6 {[%emt 0:01:05]} 81. Rc8 {[%emt 0:00:25]} Bg7 {[%emt 0:00:36]} 82. Ke4 {[%emt 0:00:05]} Bf6 {[%emt 0:00:11]} 83. Rc7 {[%emt 0:00:55]} Bd8 {[%emt 0:00:45]} 84. Rf7 {[%emt 0:00:20]} Kc3 {[%emt 0:00:29]} 85. Bd3 {[%emt 0:00:29]} Nb4 {[%emt 0:00:11]} 86. Rf3 {[%emt 0:00:13]} Bb6 {[%emt 0:00:42]} 87. Bb5+ {[%emt 0:00:11]} Kd2 {[%emt 0:00:19]} 88. Ba4 {[%emt 0:01:50]} Bc5 {[%emt 0:00:33]} 89. Rb3 {[%emt 0:00:42]} Be7 {[%emt 0:00:20]} 90. Kd4 {[%emt 0:00:12]} Nc2+ {[%emt 0:00:18]} 91. Ke4 {[%emt 0:00:38]} Nb4 {[%emt 0:00:03]} 92. Rf3 {[%emt 0:00:55]} Bc5 {[%emt 0:00:18]} 93. Rf5 {[%emt 0:00:15]} Be7 {[%emt 0:00:15]} 94. Rf7 {[%emt 0:00:32]} Bg5 {[%emt 0:01:31]} 95. Rb7 {[%emt 0:01:01]} Kc3 {[%emt 0:01:13]} 96. Rc7+ {[%emt 0:01:34]} Kd2 {[%emt 0:00:16]} 97. Rg7 {[%emt 0:02:20]} Bf6 {[%emt 0:00:16]} 98. Rf7 {[%emt 0:01:09]} Bg5 {[%emt 0:00:18]} 99. Rf2+ {[%emt 0:00:11]} Kc3 {[%emt 0:00:12]} 100. Rf3+ {[%emt 0:00:20]} Kd2 {[%emt 0:00:30]} 101. Rf7 {[%emt 0:01:07]} Kc3 {[%emt 0:00:38]} 102. Rc7+ {[%emt 0:00:32]} Kd2 {[%emt 0:00:22]} 103. Rc4 {[%emt 0:02:44]} Be7 {[%emt 0:00:07]} 104. Bb3 {[%emt 0:00:38]} Bf8 {[%emt 0:00:17]} 105. Rc7 {[%emt 0:00:14]} Bh6 {[%emt 0:01:45]} 106. Kd4 {[%emt 0:00:09]} Bf8 {[%emt 0:00:49]} 107. Rf7 {[%emt 0:00:13]} Bd6 {[%emt 0:00:36]} 108. Rf2+ {[%emt 0:00:29]} Ke1 {[%emt 0:00:18]} 109. Rf6 {[%emt 0:01:03]} Bc7 {[%emt 0:00:46]} 110. Kc4 {[%emt 0:00:37]} Ba5 {[%emt 0:00:12]} 111. Kb5 {[%emt 0:00:21]} 1-0

[Event "POL-chT 1 Liga 2019"]
[Site "Dzwirzyno"]
[Date "2019.09.11"]
[Round "5.17"]
[White "Rozycki, Bartlomiej"]
[Black "Samborski, Henryk"]
[Result "1-0"]
[ECO "B99"]
[WhiteElo "2200"]
[BlackElo "2098"]
[Annotator "NA"]
[PlyCount "75"]
[EventDate "2019.09.07"]
[EventType "team-tourn"]
[EventCountry "POL"]
[SourceTitle "playchess.com"]
[Source "ChessBase"]
[SourceQuality "1"]
[TimeControl "40/5400+30:1800+30"]

1. e4 {[%emt 0:00:00]} c5 {[%emt 0:00:22]} 2. Nf3 {[%emt 0:00:00]} d6 {[%emt 0:00:12]} 3. d4 {[%emt 0:00:00]} cxd4 {[%emt 0:00:10]} 4. Nxd4 {[%emt 0:00:00]} Nf6 {[%emt 0:00:11]} 5. Nc3 {[%emt 0:00:00]} a6 {[%emt 0:00:07]} 6. Bg5 {[%emt 0:00:12]} Nbd7 {[%emt 0:00:50]} 7. f4 {[%emt 0:00:12]} Qc7 {[%emt 0:01:23]} 8. Qf3 {[%emt 0:00:16]} e6 {[%emt 0:13:11]} 9. O-O-O {[%emt 0:01:41]} Be7 {[%emt 0:04:20]} 10. Bd3 {[%emt 0:08:06]} Nc5 {[%emt 0:02:54]} 11. Rhe1 {[%emt 0:04:11]} Bd7 {[%emt 0:21:36]} 12. Qg3 {[%emt 0:08:43]} h6 {[%emt 0:26:07]} 13. Bxf6 {[%emt 0:04:39]} gxf6 {[%emt 0:02:39]} 14. Qg7 {[%emt 0:15:41]} O-O-O {[%emt 0:00:24]} 15. Nf5 {[%emt 0:00:08]} exf5 {[%emt 0:01:40]} 16. Nd5 {[%emt 0:00:49]} Qa5 {[%emt 0:05:41]} 17. Nxe7+ {[%emt 0:02:45]} Kb8 {[%emt 0:00:05]} 18. Qxf6 {[%emt 0:02:01]} Nxd3+ {[%emt 0:04:14]} 19. cxd3 {[%emt 0:00:10]} Qxa2 {[%emt 0:05:13]} 20. Qxd6+ {[%emt 0:01:09]} Ka8 {[%emt 0:01:07]} 21. Qa3 {[%emt 0:00:26]} Qxa3 {[%emt 0:00:26]} 22. bxa3 {[%emt 0:00:05]} Ba4 {[%emt 0:00:55]} 23. Rd2 {[%emt 0:00:21]} fxe4 {[%emt 0:00:30]} 24. dxe4 {[%emt 0:01:20]} Rxd2 {[%emt 0:01:07]} 25. Kxd2 {[%emt 0:00:05]} Rd8+ {[%emt 0:01:13]} 26. Ke3 {[%emt 0:00:30]} Bc2 {[%emt 0:00:57]} 27. Rc1 {[%emt 0:01:56]} Re8 {[%emt 0:02:34]} 28. Nd5 {[%emt 0:04:13]} Rxe4+ {[%emt 0:00:22]} 29. Kf3 {[%emt 0:00:06]} Bd3 {[%emt 0:00:42]} 30. Nb4 {[%emt 0:00:40]} Rxb4 {[%emt 0:02:28]} 31. axb4 {[%emt 0:00:21]} Ka7 {[%emt 0:00:44]} 32. Rc7 {[%emt 0:00:12]} f5 {[%emt 0:00:03]} 33. g4 {[%emt 0:01:14]} Kb6 {[%emt 0:00:17]} 34. Re7 {[%emt 0:00:12]} fxg4+ {[%emt 0:01:29]} 35. Kxg4 {[%emt 0:01:01]} Bc4 {[%emt 0:00:24]} 36. f5 {[%emt 0:00:16]} Bd5 {[%emt 0:00:06]} 37. f6 {[%emt 0:00:11]} Kb5 {[%emt 0:00:01]} 38. Re5 {[%emt 0:00:26]} 1-0

[Event "POL-chT 1 Liga 2019"]
[Site "Dzwirzyno"]
[Date "2019.09.11"]
[Round "5.18"]
[White "Worek, Joanna"]
[Black "Moscicka, Pola"]
[Result "1-0"]
[ECO "B34"]
[WhiteElo "2308"]
[BlackElo "1994"]
[Annotator "NA"]
[PlyCount "59"]
[EventDate "2019.09.07"]
[EventType "team-tourn"]
[EventCountry "POL"]
[SourceTitle "playchess.com"]
[Source "ChessBase"]
[SourceQuality "1"]
[TimeControl "40/5400+30:1800+30"]

1. e4 {[%emt 0:00:00]} c5 {[%emt 0:00:00]} 2. Nf3 {[%emt 0:00:00]} Nc6 {[%emt 0:00:00]} 3. d4 {[%emt 0:00:00]} cxd4 {[%emt 0:00:00]} 4. Nxd4 {[%emt 0:00:00]} Nf6 {[%emt 0:00:00]} 5. Nc3 {[%emt 0:00:00]} e5 {[%emt 0:00:00]} 6. Ndb5 {[%emt 0:00:00]} d6 {[%emt 0:00:02]} 7. Bg5 {[%emt 0:00:05]} a6 {[%emt 0:00:08]} 8. Bxf6 {[%emt 0:00:08]} gxf6 {[%emt 0:00:05]} 9. Na3 {[%emt 0:00:06]} b5 {[%emt 0:00:07]} 10. Nd5 {[%emt 0:00:05]} Bg7 {[%emt 0:00:06]} 11. Bd3 {[%emt 0:00:08]} Ne7 {[%emt 0:00:28]} 12. Nxe7 {[%emt 0:00:07]} Qxe7 {[%emt 0:00:03]} 13. O-O {[%emt 0:00:11]} O-O {[%emt 0:00:48]} 14. c4 {[%emt 0:00:06]} f5 {[%emt 0:02:01]} 15. Qh5 {[%emt 0:00:21]} bxc4 {[%emt 0:12:33]} 16. Nxc4 {[%emt 0:01:50]} Rb8 {[%emt 0:00:42]} 17. Ne3 {[%emt 0:04:31]} Rxb2 {[%emt 0:08:19]} 18. exf5 {[%emt 0:15:14]} e4 {[%emt 0:02:57]} 19. Bc4 {[%emt 0:04:45]} Bb7 {[%emt 0:21:24]} 20. Rab1 {[%emt 0:09:49]} Rxb1 {[%emt 0:13:14]} 21. Rxb1 {[%emt 0:00:02]} Bc6 {[%emt 0:05:15]} 22. h3 {[%emt 0:08:35]} Rd8 {[%emt 0:03:31]} 23. Rd1 {[%emt 0:04:09]} Bb5 {[%emt 0:09:57]} 24. Bb3 {[%emt 0:15:33]} Bd3 {[%emt 0:01:34]} 25. Nd5 {[%emt 0:05:32]} Qe5 {[%emt 0:01:40]} 26. Qh4 {[%emt 0:00:24]} Re8 {[%emt 0:05:39]} 27. f6 {[%emt 0:01:37]} Bh8 {[%emt 0:00:44]} 28. Ne7+ {[%emt 0:00:14]} Rxe7 {[%emt 0:00:54]} 29. fxe7 {[%emt 0:00:02]} Bf6 {[%emt 0:00:10]} 30. Qxf6 {[%emt 0:00:06]} 1-0

[Event "POL-chT 1 Liga 2019"]
[Site "Dzwirzyno"]
[Date "2019.09.11"]
[Round "5.20"]
[White "Barski, Radoslaw"]
[Black "Flis, Pawel"]
[Result "1-0"]
[ECO "B52"]
[WhiteElo "2425"]
[BlackElo "1897"]
[Annotator "NA"]
[PlyCount "83"]
[EventDate "2019.09.07"]
[EventType "team-tourn"]
[EventCountry "POL"]
[SourceTitle "playchess.com"]
[Source "ChessBase"]
[SourceQuality "1"]
[TimeControl "40/5400+30:1800+30"]

1. e4 {[%emt 0:00:00]} c5 {[%emt 0:00:00]} 2. Nf3 {[%emt 0:00:00]} d6 {[%emt 0:00:02]} 3. Bb5+ {[%emt 0:00:00]} Bd7 {[%emt 0:00:07]} 4. a4 {[%emt 0:01:10]} Nc6 {[%emt 0:01:08]} 5. O-O {[%emt 0:01:08]} Nf6 {[%emt 0:01:29]} 6. Re1 {[%emt 0:06:05]} e6 {[%emt 0:04:39]} 7. c3 {[%emt 0:00:38]} Be7 {[%emt 0:01:56]} 8. d4 {[%emt 0:02:18]} O-O {[%emt 0:01:23]} 9. dxc5 {[%emt 0:06:52]} dxc5 {[%emt 0:00:28]} 10. Bf4 {[%emt 0:00:04]} a6 {[%emt 0:08:35]} 11. Bf1 {[%emt 0:00:28]} Nb8 {[%emt 0:15:40]} 12. Nbd2 {[%emt 0:00:46]} Bc6 {[%emt 0:00:12]} 13. a5 {[%emt 0:02:28]} Nbd7 {[%emt 0:01:37]} 14. Qc2 {[%emt 0:00:08]} Bb5 {[%emt 0:09:16]} 15. Nc4 {[%emt 0:06:53]} Bxc4 {[%emt 0:03:14]} 16. Bxc4 {[%emt 0:00:35]} Qc8 {[%emt 0:06:50]} 17. e5 {[%emt 0:12:34]} Nh5 {[%emt 0:04:07]} 18. Bg5 {[%emt 0:02:28]} Qd8 {[%emt 0:02:14]} 19. Bxe7 {[%emt 0:00:44]} Qxe7 {[%emt 0:00:06]} 20. Qe4 {[%emt 0:00:11]} g6 {[%emt 0:06:43]} 21. Qxb7 {[%emt 0:01:47]} Rfb8 {[%emt 0:00:16]} 22. Qe4 {[%emt 0:00:06]} Ra7 {[%emt 0:00:50]} 23. b3 {[%emt 0:00:30]} Ng7 {[%emt 0:00:27]} 24. Red1 {[%emt 0:00:32]} Ne8 {[%emt 0:01:48]} 25. Qd3 {[%emt 0:08:23]} Nf8 {[%emt 0:02:58]} 26. Nd2 {[%emt 0:01:00]} Rd8 {[%emt 0:03:22]} 27. Qe2 {[%emt 0:00:54]} Qb7 {[%emt 0:04:50]} 28. f4 {[%emt 0:01:47]} Raa8 {[%emt 0:02:47]} 29. Qe3 {[%emt 0:05:50]} Qc6 {[%emt 0:01:23]} 30. Ne4 {[%emt 0:02:30]} Rxd1+ {[%emt 0:03:05]} 31. Rxd1 {[%emt 0:00:08]} Rc8 {[%emt 0:00:16]} 32. Qe2 {[%emt 0:01:35]} Ra8 {[%emt 0:01:46]} 33. Qf3 {[%emt 0:00:31]} Rc8 {[%emt 0:01:14]} 34. Nf6+ {[%emt 0:04:49]} Nxf6 {[%emt 0:00:21]} 35. Qxc6 {[%emt 0:00:06]} Rxc6 {[%emt 0:00:06]} 36. exf6 {[%emt 0:00:03]} h6 {[%emt 0:07:01]} 37. Rd8 {[%emt 0:00:12]} g5 {[%emt 0:00:23]} 38. fxg5 {[%emt 0:00:25]} hxg5 {[%emt 0:00:05]} 39. Ra8 {[%emt 0:00:03]} Rd6 {[%emt 0:01:06]} 40. Bxa6 {[%emt 0:00:00]} e5 {[%emt 0:00:00]} 41. Bc4 {[%emt 0:00:43]} Rxf6 {[%emt 0:01:00]} 42. a6 {[%emt 0:00:08]} 1-0

[Event "POL-chT 1 Liga 2019"]
[Site "Dzwirzyno"]
[Date "2019.09.11"]
[Round "5.21"]
[White "Szmacinski, Slawomir"]
[Black "Kosakowski, Jakub"]
[Result "0-1"]
[ECO "A56"]
[WhiteElo "1848"]
[BlackElo "2411"]
[Annotator "NA"]
[PlyCount "84"]
[EventDate "2019.09.07"]
[EventType "team-tourn"]
[EventCountry "POL"]
[SourceTitle "playchess.com"]
[Source "ChessBase"]
[SourceQuality "1"]
[TimeControl "40/5400+30:1800+30"]

1. d4 {[%emt 0:00:00]} Nf6 {[%emt 0:00:06]} 2. c4 {[%emt 0:00:00]} c5 {[%emt 0:02:46]} 3. e3 {[%emt 0:00:50]} g6 {[%emt 0:02:02]} 4. Nc3 Bg7 {[%emt 0:00:12]} 5. d5 {[%emt 0:02:55]} O-O {[%emt 0:00:12]} 6. e4 {[%emt 0:02:19]} d6 {[%emt 0:00:12]} 7. Bd3 {[%emt 0:00:46]} e6 {[%emt 0:02:18]} 8. Bg5 {[%emt 0:08:08]} exd5 {[%emt 0:04:54]} 9. cxd5 {[%emt 0:02:05]} h6 {[%emt 0:11:06]} 10. Bf4 Na6 11. f3 {[%emt 0:02:47]} Nc7 {[%emt 0:03:30]} 12. Qd2 {[%emt 0:00:55]} Kh7 {[%emt 0:01:00]} 13. Nge2 {[%emt 0:00:46]} a6 {[%emt 0:00:33]} 14. a4 {[%emt 0:01:04]} b6 {[%emt 0:00:08]} 15. g4 {[%emt 0:05:23]} Qe7 {[%emt 0:01:54]} 16. h4 {[%emt 0:02:26]} Nd7 {[%emt 0:00:10]} 17. h5 {[%emt 0:05:27]} Ne5 {[%emt 0:01:58]} 18. Bxe5 {[%emt 0:11:03]} dxe5 {[%emt 0:00:54]} 19. O-O-O {[%emt 0:00:36]} Ne8 {[%emt 0:05:41]} 20. Ng3 {[%emt 0:05:14]} Nd6 {[%emt 0:00:48]} 21. Rdg1 {[%emt 0:06:15]} g5 {[%emt 0:01:23]} 22. Nf5 {[%emt 0:01:13]} Bxf5 {[%emt 0:00:08]} 23. exf5 {[%emt 0:01:38]} Bf6 {[%emt 0:00:11]} 24. Ne4 {[%emt 0:00:18]} b5 {[%emt 0:00:34]} 25. Bc2 {[%emt 0:06:29]} bxa4 {[%emt 0:01:09]} 26. Bxa4 {[%emt 0:00:31]} Rab8 {[%emt 0:00:08]} 27. Rh2 {[%emt 0:01:43]} Rb4 {[%emt 0:00:11]} 28. Bc6 {[%emt 0:05:29]} Rfb8 {[%emt 0:01:07]} 29. Rgg2 {[%emt 0:03:18]} Nxe4 {[%emt 0:02:34]} 30. fxe4 {[%emt 0:00:09]} Qd6 {[%emt 0:00:02]} 31. Re2 {[%emt 0:00:53]} Bd8 {[%emt 0:00:43]} 32. f6 {[%emt 0:05:22]} Ba5 {[%emt 0:00:45]} 33. Qd3 {[%emt 0:00:28]} c4 {[%emt 0:00:36]} 34. Qe3 {[%emt 0:03:35]} Bb6 {[%emt 0:00:50]} 35. Qf3 {[%emt 0:08:39]} Rb3 {[%emt 0:00:32]} 36. Qf5+ {[%emt 0:01:54]} Kg8 {[%emt 0:00:08]} 37. Ba4 {[%emt 0:00:19]} Rb4 {[%emt 0:01:01]} 38. Qd7 {[%emt 0:01:41]} Qxf6 {[%emt 0:01:10]} 39. Qc6 {[%emt 0:02:07]} Qf1+ {[%emt 0:03:20]} 40. Bd1 {[%emt 0:00:00]} Bg1 {[%emt 0:00:00]} 41. Rhg2 {[%emt 0:03:49]} Be3+ {[%emt 0:02:46]} 42. Kb1 {[%emt 0:00:49]} Qxd1+ {[%emt 0:00:07]} 0-1

[Event "POL-chT 1 Liga 2019"]
[Site "Dzwirzyno"]
[Date "2019.09.11"]
[Round "5.22"]
[White "Walter, Szymon"]
[Black "Redlich, Bogdan"]
[Result "1-0"]
[ECO "B23"]
[WhiteElo "2311"]
[BlackElo "1600"]
[Annotator "NA"]
[PlyCount "66"]
[EventDate "2019.09.07"]
[EventType "team-tourn"]
[EventCountry "POL"]
[SourceTitle "playchess.com"]
[Source "ChessBase"]
[SourceQuality "1"]
[TimeControl "40/5400+30:1800+30"]

1. e4 {[%emt 0:00:32]} c5 {[%emt 0:00:45]} 2. Nc3 {[%emt 0:00:30]} d6 {[%emt 0:00:30]} 3. f4 {[%emt 0:00:30]} Nf6 {[%emt 0:00:30]} 4. Nf3 {[%emt 0:00:30]} g6 {[%emt 0:00:30]} 5. Bb5+ {[%emt 0:00:30]} Bd7 {[%emt 0:00:30]} 6. Bc4 {[%emt 0:00:30]} Bg7 {[%emt 0:00:30]} 7. d3 {[%emt 0:00:30]} O-O {[%emt 0:00:30]} 8. O-O {[%emt 0:00:30]} Bg4 {[%emt 0:00:30]} 9. h3 {[%emt 0:08:14]} Bxf3 {[%emt 0:09:55]} 10. Qxf3 {[%emt 0:00:06]} Nc6 {[%emt 0:02:58]} 11. g4 {[%emt 0:00:37]} e6 {[%emt 0:10:57]} 12. Qg2 {[%emt 0:01:36]} Nd4 {[%emt 0:19:04]} 13. Bb3 {[%emt 0:05:07]} b5 {[%emt 0:11:39]} 14. f5 {[%emt 0:04:55]} b4 {[%emt 0:04:02]} 15. Ne2 {[%emt 0:01:42]} Nxb3 {[%emt 0:05:40]} 16. axb3 {[%emt 0:00:36]} Nd7 {[%emt 0:01:57]} 17. g5 {[%emt 0:05:50]} exf5 {[%emt 0:04:05]} 18. exf5 {[%emt 0:00:20]} Be5 {[%emt 0:00:21]} 19. h4 {[%emt 0:01:19]} h5 {[%emt 0:06:15]} 20. Nf4 {[%emt 0:05:01]} Bxf4 {[%emt 0:05:21]} 21. Bxf4 {[%emt 0:00:08]} Ne5 {[%emt 0:01:42]} 22. Qd5 {[%emt 0:02:10]} Qc7 {[%emt 0:07:07]} 23. Bxe5 {[%emt 0:16:52]} dxe5 {[%emt 0:00:04]} 24. fxg6 {[%emt 0:00:07]} Rad8 {[%emt 0:02:51]} 25. gxf7+ {[%emt 0:00:23]} Kg7 {[%emt 0:01:46]} 26. Qf3 {[%emt 0:00:53]} Qd6 {[%emt 0:01:13]} 27. Rxa7 {[%emt 0:01:43]} Qd4+ {[%emt 0:00:15]} 28. Rf2 {[%emt 0:00:51]} Rd6 {[%emt 0:00:32]} 29. Rd7 {[%emt 0:05:11]} e4 {[%emt 0:01:40]} 30. Rxd6 {[%emt 0:00:19]} exf3 {[%emt 0:00:08]} 31. Rxd4 {[%emt 0:00:07]} cxd4 {[%emt 0:00:04]} 32. Rxf3 {[%emt 0:00:30]} Rxf7 {[%emt 0:00:30]} 33. Rxf7+ {[%emt 0:00:00]} Kxf7 1-0